bitfinex/quotes_ETHUSD_20251213
["timestamp","ask_amount","ask_price","bid_price","bid_amount"]
[1765639834335,0.001,3120.9,3120.5,10.33739903]
[1765639834496,0.001,3120.9,3120.5,14.69919903]
[1765639834690,0.001,3120.9,3120.5,15.19169903]
[1765639835296,0.001,3120.9,3120.5,15.31998659]
[1765639835531,0.001,3120.9,3120.5,23.71146661]
[1765639839124,0.001,3120.9,3120.5,23.21356561]
[1765639845017,0.001,3121.3,3121.2,0.405504]
[1765639845219,0.001,3121.3,3121.2,15.69769903]
[1765639846031,0.001,3121.3,3121.2,15.33346603]
[1765639846218,0.001,3121.3,3121.2,16.88297263]
[1765639846622,0.001,3121.3,3121.2,20.08686856]
[1765639846931,0.975,3121.3,3121.2,12.46734809]
[1765639847115,0.975,3121.3,3121.2,12.97334809]
[1765639848609,0.001,3121.3,3121.2,17.64905796]
[1765639849719,0.476,3121.3,3121.2,17.64905796]
[1765639849920,0.476,3121.3,3121.2,20.05476501]
[1765639850109,0.001,3121.3,3121.2,20.05476501]
[1765639850910,0.001,3121.3,3121.2,20.53756501]
[1765639851218,0.476,3121.3,3121.2,15.37905514]
[1765639851419,0.975,3121.3,3121.2,15.37905514]
[1765639851807,0.975,3121.3,3121.2,8.29763822]
[1765639852012,0.001,3121.3,3121.2,13.45614809]
[1765639852255,0.001,3121.3,3121.2,18.13185796]
[1765639853322,0.001,3121.3,3121.2,12.97334809]
[1765639853323,0.476,3121.3,3121.2,12.97334809]
[1765639853517,0.975,3121.3,3121.2,12.97334809]
[1765639853939,0.975,3121.3,3121.2,12.96894737]
[1765639856062,0.975,3121.3,3121.2,12.96905794]
[1765639860955,0.476,3121.3,3121.2,12.96905794]
[1765639861465,0.9462,3121.3,3121.2,8.29763822]
[1765639861660,0.9462,3121.3,3121.2,4.007267]
[1765639861848,1.24556468,3121.3,3120.0,3.879]
[1765639862050,1.24556468,3121.3,3119.9,3.71323093]
[1765639862051,0.4554,3120.0,3119.9,3.71323093]
[1765639862253,0.4554,3120.0,3119.9,9.25246364]
[1765639862557,1.1071,3120.0,3119.9,9.63445071]
[1765639862740,1.1071,3120.0,3119.9,10.214926]
[1765639863138,1.1071,3120.0,3119.9,11.00734572]
[1765639867297,1.1071,3120.0,3119.9,14.88634572]
[1765639867642,0.9256,3120.0,3119.9,14.88634572]
[1765639867966,0.4554,3120.0,3119.9,14.88634572]
[1765639870837,0.4702,3120.6,3120.0,0.58047529]
[1765639871156,0.4702,3120.6,3120.4,0.58047529]
[1765639871562,0.4554,3120.5,3120.4,1.05067529]
[1765639871758,0.1815,3121.0,3120.5,0.4756]
[1765639871971,0.6517,3121.0,3120.6,5.25189501]
[1765639872569,0.4554,3120.7,3120.6,5.25189501]
[1765639872972,0.9256,3120.7,3120.6,8.45640696]
[1765639873274,0.9256,3120.7,3120.6,8.92660696]
[1765639876463,0.4554,3120.7,3120.6,8.92660696]
[1765639876666,0.4554,3120.7,3120.6,10.19032972]
[1765639877461,0.9256,3120.7,3120.6,10.19032972]
[1765639877759,0.9256,3120.7,3120.6,8.92660696]
[1765639883083,0.4554,3120.7,3120.6,8.92660696]
[1765639883292,0.9293,3120.7,3120.6,8.92660696]
[1765639887181,0.9293,3120.7,3120.6,4.25518724]
[1765639888056,0.9293,3120.7,3120.6,3.67471195]
[1765639888264,1.22889801,3120.7,3120.6,3.20451195]
[1765639888687,1.22889801,3120.7,3120.5,3.20457669]
[1765639888886,0.4882,3120.6,3120.5,3.20457669]
[1765639889091,0.9482,3120.6,3120.2,6.99032081]
[1765639889394,0.4882,3120.6,3120.2,6.99032081]
[1765639889594,0.46,3120.3,3120.2,4.74787585]
[1765639889969,0.9482,3120.3,3120.2,4.74787585]
[1765639890162,0.9482,3120.3,3120.2,3.20492276]
[1765639890660,1.24808232,3120.3,3120.2,3.20492276]
[1765639891492,1.24808232,3120.3,3120.1,3.20502547]
[1765639891663,0.78808232,3120.2,3120.1,3.20502547]
[1765639891863,1.24808232,3120.2,3120.1,3.20502547]
[1765639896190,1.24808232,3120.2,3119.9,3.20720469]
[1765639896394,0.506,3120.7,3119.9,3.20720469]
[1765639896395,0.1991,3120.0,3119.9,3.20720469]
[1765639896596,0.1991,3120.0,3119.9,0.002]
[1765639896797,0.6873,3120.0,3119.9,0.002]
[1765639899000,0.98695149,3120.0,3119.9,0.002]
[1765639911111,0.49875149,3120.0,3119.9,0.002]
[1765639913213,0.98695149,3120.0,3119.9,0.002]
[1765639920027,1.45674736,3120.0,3119.9,0.002]
[1765639920243,0.98695149,3120.0,3119.9,0.002]
[1765639920890,4.19207969,3120.0,3119.9,0.002]
[1765639921091,8.8691936,3120.0,3119.9,0.002]
[1765639921889,0.98695149,3120.0,3119.9,0.002]
[1765639922191,1.00475149,3120.0,3119.9,0.002]
[1765639922410,1.49755149,3120.0,3119.9,0.002]
[1765639922616,1.00475149,3120.0,3119.9,0.002]
[1765639923214,0.49875149,3120.0,3119.9,0.002]
[1765639923421,1.49755149,3120.0,3119.9,0.002]
[1765639923987,0.99155149,3120.0,3119.9,0.002]
[1765639924218,1.49755149,3120.0,3119.9,0.002]
[1765639925035,0.99155149,3120.0,3119.9,0.002]
[1765639925231,1.49755149,3120.0,3119.9,0.002]
[1765639925723,1.00475149,3120.0,3119.9,0.002]
[1765639926893,0.49875149,3120.0,3119.9,0.002]
[1765639927097,0.76595149,3120.0,3119.9,0.002]
[1765639928214,1.25875149,3120.0,3119.9,0.002]
[1765639936930,0.76595149,3120.0,3119.9,0.002]
[1765639942245,0.29965149,3120.0,3119.9,5.13435612]
[1765639942443,0.29965149,3120.0,3119.9,5.59705612]
[1765639942751,0.29965149,3120.0,3119.9,6.55968525]
[1765639943546,0.29965149,3120.0,3119.9,10.43968525]
[1765639944153,0.29965149,3120.0,3119.9,13.64491618]
[1765639947619,0.29965149,3120.0,3119.9,15.65047479]
[1765639950232,0.29965149,3120.0,3119.9,20.32763091]
[1765639950625,0.29965149,3120.0,3119.9,15.65047479]
[1765639950828,0.29965149,3120.0,3119.9,20.32763091]
[1765639951348,0.9802,3120.8,3119.9,26.73809277]
[1765639951553,0.30016073,3120.7,3120.2,4.67715612]
[1765639951724,0.30016073,3120.6,3120.2,4.67715612]
[1765639951924,0.30016073,3120.5,3120.2,0.4941]
[1765639952130,0.4549,3120.3,3120.1,4.67715612]
[1765639952324,0.4549,3120.3,3120.2,0.73509654]
[1765639952525,0.75504452,3120.3,3120.2,1.24109654]
[1765639952744,0.30014452,3120.3,3120.2,1.24109654]
[1765639953255,0.30014452,3120.3,3120.2,4.4460193]
[1765639954045,0.75504452,3120.3,3120.2,4.4460193]
[1765639955228,1.22924452,3120.3,3120.2,8.3260193]
[1765639958541,0.75504452,3120.3,3120.2,8.3260193]
[1765639958735,0.30014452,3120.3,3120.2,8.7864193]
[1765639959264,0.30014452,3120.3,3120.2,9.2805193]
[1765639962377,0.30014452,3120.3,3120.2,13.95560705]
[1765639963643,0.30014452,3120.3,3120.2,13.00110705]
[1765639963848,0.75504452,3120.3,3120.2,12.26601051]
[1765639964051,0.75504452,3120.3,3120.2,7.59092276]
[1765639964962,0.30014452,3120.3,3120.2,8.05132276]
[1765639965346,0.30014452,3120.3,3120.2,13.22051051]
[1765639967370,0.30014452,3120.3,3120.2,9.34051051]
[1765639968467,0.30014452,3120.3,3120.2,11.30356738]
[1765639970172,0.30014452,3120.3,3120.2,10.80946738]
[1765639972358,0.75504452,3120.3,3120.2,5.67397963]
[1765639974577,0.30014452,3120.3,3120.2,6.13437963]
[1765639975071,0.30014452,3120.3,3120.2,6.59677963]
[1765639978263,0.30014452,3120.3,3120.2,6.13437963]
[1765639980354,0.30048351,3120.3,3120.2,6.13437963]
[1765639980554,0.30048351,3120.3,3120.2,11.05725492]
[1765639980884,0.457,3121.2,3120.3,0.58047529]
[1765639981083,0.30045196,3121.1,3120.7,4.67482884]
[1765639981258,0.30045196,3121.0,3120.7,4.67482884]
[1765639981450,0.30045196,3120.9,3120.7,4.67482884]
[1765639981655,0.30045196,3120.8,3120.7,4.67482884]
[1765639982079,0.30045196,3120.8,3120.7,5.13622884]
[1765639982285,0.30045196,3120.8,3120.7,5.69609172]
[1765639982458,0.30045196,3120.8,3120.7,9.35750098]
[1765639985085,0.30045196,3120.8,3120.7,13.23750098]
[1765639985888,0.30045196,3120.8,3120.7,8.56267214]
[1765639986084,0.76765196,3120.8,3120.7,8.10127214]
[1765639986883,1.22465196,3120.8,3120.7,4.337]
[1765639987069,1.22465196,3120.8,3120.7,3.88]
[1765639987909,4.42895854,3120.8,3120.7,3.88]
[1765639988276,1.22465196,3120.8,3120.7,3.88]
[1765639990386,4.42895854,3120.8,3120.7,3.88]
[1765639990964,4.42895854,3120.8,3120.2,4.1674204]
[1765639991164,0.211,3120.3,3120.2,4.1674204]
[1765639991365,0.51145196,3120.3,3120.2,8.0474204]
[1765639991568,0.96845196,3120.3,3120.2,8.0474204]
[1765639992699,0.96845196,3120.3,3120.2,0.96252721]
[1765639992896,0.96845196,3120.3,3120.1,3.20496493]
[1765639993190,0.6995,3120.9,3120.2,3.20492276]
[1765639993499,0.29994335,3120.8,3120.2,3.20492276]
[1765639993684,0.29994335,3120.7,3120.2,6.40984552]
[1765639994002,0.29994335,3120.6,3120.3,0.457]
[1765639994180,0.29994335,3120.5,3120.3,0.457]
[1765639994363,0.29994335,3120.4,3120.3,0.9194]
[1765639994566,0.29994335,3120.4,3120.3,0.457]
[1765639994865,0.29994335,3120.4,3120.3,4.58562004]
[1765639995889,0.29994335,3120.4,3120.3,3.66182004]
[1765639996572,0.29994335,3120.4,3120.3,4.12322004]
[1765639997490,0.29994335,3120.4,3120.3,10.03950316]
[1765639998092,1.1565,3120.9,3120.3,13.24374836]
[1765639998274,0.29990236,3120.8,3120.3,13.24374836]
[1765639998475,0.29990236,3120.7,3120.3,16.4485684]
[1765639998799,0.29990236,3120.6,3120.4,0.4624]
[1765639998976,0.6505,3120.9,3120.5,8.51548612]
[1765639999176,0.29990036,3120.8,3120.5,8.51548612]
[1765639999376,0.29990036,3120.7,3120.5,8.51548612]
[1765639999576,0.29990036,3120.6,3120.5,5.31087148]
[1765640000392,0.29990036,3120.6,3120.5,5.76787148]
[1765640002787,0.29990036,3120.6,3120.5,9.64787148]
[1765640006712,0.77470036,3120.6,3120.5,7.54161464]
[1765640006887,1.26660036,3120.6,3120.5,7.54161464]
[1765640007290,1.26660036,3120.6,3120.5,3.66161464]
[1765640008414,0.77470036,3120.6,3120.5,3.66161464]
[1765640013116,1.26660036,3120.6,3120.5,3.66161464]
[1765640014507,0.77470036,3120.6,3120.5,3.66161464]
[1765640018002,1.26660036,3120.6,3120.5,3.66161464]
[1765640022126,0.77470036,3120.6,3120.5,3.66161464]
[1765640024022,1.26660036,3120.6,3120.5,3.66161464]
[1765640024825,0.77470036,3120.6,3120.5,3.66161464]
[1765640025309,1.26660036,3120.6,3120.5,3.66161464]
[1765640025896,0.77470036,3120.6,3120.5,3.66161464]
[1765640028496,0.29990036,3120.6,3120.5,4.14371464]
[1765640028900,0.29990036,3120.6,3120.5,0.457]
[1765640028901,1.26660036,3120.6,3120.5,0.457]
[1765640029112,0.77470036,3120.6,3120.5,0.457]
[1765640029510,0.77470036,3120.6,3120.5,3.66161464]
[1765640030031,0.29990036,3120.6,3120.5,3.66161464]
[1765640030243,0.29990036,3120.6,3120.5,4.14371464]
[1765640030525,0.29990036,3120.6,3120.5,6.14605641]
[1765640035433,0.29990036,3120.6,3120.5,10.02605641]
[1765640035800,0.29990036,3120.6,3120.5,9.54645641]
[1765640036105,0.29990036,3120.6,3120.5,10.02905641]
[1765640036311,0.29990036,3120.6,3120.5,8.02371464]
[1765640039956,0.29990036,3120.6,3120.5,12.69783573]
[1765640043721,0.29990036,3120.6,3120.5,13.18043573]
[1765640044225,0.29990036,3120.6,3120.5,12.69783573]
[1765640045244,0.29990036,3120.6,3120.5,13.18043573]
[1765640045442,1.26870036,3120.6,3120.5,0.457]
[1765640046136,1.26870036,3120.6,3120.5,3.66161464]
[1765640047318,0.78940036,3120.6,3120.5,3.66161464]
[1765640047929,1.26870036,3120.6,3120.5,3.66161464]
[1765640048348,1.26911446,3120.6,3120.5,3.66161464]
[1765640050429,0.78981446,3120.6,3120.5,3.66161464]
[1765640051148,0.78981446,3120.6,3120.5,0.457]
[1765640051353,1.26911446,3120.6,3120.5,0.457]
[1765640052452,1.26911446,3120.6,3120.5,3.66161464]
[1765640054823,0.9688,3120.6,3120.5,3.66161464]
[1765640055024,1.2690894,3120.6,3120.5,3.66161464]
[1765640057650,1.2690894,3120.6,3120.5,0.457]
[1765640058325,1.44659834,3120.6,3120.5,0.457]
[1765640062128,1.44656934,3120.6,3120.5,0.457]
[1765640066070,1.44656934,3120.6,3120.5,3.66161464]
[1765640066255,0.7897604,3120.6,3120.5,3.66161464]
[1765640066941,0.7897604,3120.6,3120.5,0.457]
[1765640068170,1.2851604,3120.6,3120.5,0.457]
[1765640068466,0.7897604,3120.6,3120.5,0.457]
[1765640070666,1.2851604,3120.6,3120.5,0.457]
[1765640070972,1.46427644,3120.6,3120.5,0.457]
[1765640073867,1.2851604,3120.6,3120.5,0.457]
[1765640078245,1.2851604,3120.6,3120.2,3.88]
[1765640078246,4.48967853,3120.6,3120.2,3.88]
[1765640078452,0.1641,3120.3,3120.2,4.84261677]
[1765640078662,0.4643604,3120.3,3120.2,4.84261677]
[1765640078863,0.9597604,3120.3,3120.2,4.84261677]
[1765640080080,0.9597604,3120.3,3120.2,0.96261677]
[1765640080948,1.4657604,3120.3,3119.9,0.002]
[1765640081149,0.4629,3120.0,3119.9,0.002]
[1765640081365,0.3002604,3120.0,3119.9,3.68931977]
[1765640081587,0.3002604,3120.0,3119.9,0.4841]
[1765640081886,1.2585604,3120.0,3119.9,0.002]
[1765640082086,4.4636886,3120.0,3119.9,0.508]
[1765640082282,5.6981416,3120.0,3119.9,0.508]
[1765640082462,5.6981416,3120.0,3119.9,0.002]
[1765640084486,33.20732225,3120.0,3119.9,0.002]
[1765640084890,23.01482325,3120.0,3119.9,0.002]
[1765640085292,29.52778192,3120.0,3119.9,0.002]
[1765640086388,27.45785692,3120.0,3119.9,0.002]
[1765640086793,27.03011092,3120.0,3119.9,0.002]
[1765640086988,25.03011092,3120.0,3119.9,0.002]
[1765640087594,26.56601092,3120.0,3119.9,0.002]
[1765640088396,28.09130892,3120.0,3119.9,0.002]
[1765640088592,17.10431656,3120.0,3119.9,0.002]
[1765640088786,9.99547156,3120.0,3119.9,0.002]
[1765640089097,2.57808869,3120.0,3119.9,0.002]
[1765640089267,5.05476389,3120.0,3119.9,0.002]
[1765640089873,5.55016389,3120.0,3119.9,0.002]
[1765640092908,21.86209405,3120.0,3119.9,0.002]
[1765640093282,31.29897905,3120.0,3119.9,0.002]
[1765640093799,35.97481741,3120.0,3119.9,0.002]
[1765640094198,41.90775644,3120.0,3119.9,0.002]
[1765640094404,42.03615189,3120.0,3119.9,0.002]
[1765640095193,13.67023489,3120.0,3119.9,0.002]
[1765640095407,42.03615189,3120.0,3119.9,0.002]
[1765640096204,13.67023489,3120.0,3119.9,0.002]
[1765640096405,42.03615189,3120.0,3119.9,0.002]
[1765640096881,37.11162189,3120.0,3119.9,0.002]
[1765640097086,20.41963289,3120.0,3119.9,0.002]
[1765640097286,31.55840389,3120.0,3119.9,0.002]
[1765640097483,30.56358389,3120.0,3119.9,0.002]
[1765640098176,30.56228438,3120.0,3119.9,0.002]
[1765640098378,32.87790938,3120.0,3119.9,0.002]
[1765640098707,31.08872838,3120.0,3119.9,0.002]
[1765640099415,42.03485238,3120.0,3119.9,0.002]
[1765640100050,42.44494148,3120.0,3119.9,0.002]
[1765640101823,47.12536494,3120.0,3119.9,0.002]
[1765640102396,18.75944794,3120.0,3119.9,0.002]
[1765640102597,47.12536494,3120.0,3119.9,0.002]
[1765640103120,47.12547975,3120.0,3119.9,0.002]
[1765640103695,28.365917,3119.8,3119.6,0.002]
[1765640103897,30.97001432,3119.7,3119.6,0.002]
[1765640104305,31.45011432,3119.7,3119.6,0.002]
[1765640104506,6.06995702,3119.7,3119.6,0.002]
[1765640104702,31.89935202,3119.7,3119.6,0.002]
[1765640105012,35.12074205,3119.7,3119.6,0.002]
[1765640105228,35.52624605,3119.7,3119.6,0.002]
[1765640105618,41.26820447,3119.7,3119.6,0.002]
[1765640107125,41.84867976,3119.7,3119.6,0.002]
[1765640107486,41.84975765,3119.7,3119.6,0.002]
[1765640108138,41.84975765,3119.7,3118.8,0.002]
[1765640108139,0.4642,3119.2,3118.8,0.002]
[1765640108431,30.3145318,3119.0,3118.8,0.002]
[1765640108602,33.62869065,3119.0,3118.8,0.002]
[1765640108810,33.41179465,3119.0,3118.8,0.002]
[1765640109406,33.5402371,3119.0,3118.8,0.002]
[1765640109607,39.27334691,3119.0,3118.8,0.002]
[1765640111094,0.6587,3118.4,3118.1,0.002]
[1765640111346,0.8050757,3118.3,3118.1,0.002]
[1765640111530,0.2990757,3118.2,3118.1,0.002]
[1765640111729,3.50605408,3118.2,3118.1,0.002]
[1765640111938,3.50605408,3118.2,3118.1,0.4914]
[1765640112540,3.60050124,3118.2,3118.1,0.4914]
[1765640113399,4.44733966,3118.2,3118.1,0.4914]
[1765640115597,4.91153966,3118.2,3118.1,0.002]
[1765640115797,5.39163966,3118.2,3118.1,0.002]
[1765640116027,4.91153966,3118.2,3118.1,0.002]
[1765640116232,5.41753966,3118.2,3118.1,0.002]
[1765640116599,36.69818701,3118.2,3118.1,0.002]
[1765640116841,31.9444123,3118.2,3118.1,0.002]
[1765640117721,5.02781495,3118.2,3118.1,0.4914]
[1765640117921,14.82171141,3118.2,3118.1,0.4914]
[1765640118114,5.43936779,3118.2,3118.1,0.4914]
[1765640118314,7.67358579,3118.2,3118.1,0.4914]
[1765640119414,8.13778579,3118.2,3118.1,0.002]
[1765640119818,8.61788579,3118.2,3118.1,0.002]
[1765640120944,9.02338979,3118.2,3118.1,0.002]
[1765640122037,6.78917179,3118.2,3118.1,0.002]
[1765640122238,35.24953595,3118.2,3118.1,0.002]
[1765640122923,20.77315695,3118.2,3118.1,0.002]
[1765640123129,24.34015595,3118.2,3118.1,0.002]
[1765640123646,22.48435195,3118.2,3118.1,0.4786]
[1765640123835,19.43067595,3118.2,3118.1,0.4786]
[1765640124039,24.09658195,3118.2,3118.1,0.4786]
[1765640124235,24.58158195,3118.2,3118.1,0.002]
[1765640124750,23.00135195,3118.2,3118.1,0.002]
[1765640124952,23.50735195,3118.2,3118.1,0.002]
[1765640125125,23.83935195,3118.2,3118.1,0.002]
[1765640126255,24.92637495,3118.2,3118.1,0.002]
[1765640126433,24.60519725,3118.2,3118.1,0.002]
[1765640127254,24.92622725,3118.2,3118.1,0.002]
[1765640127636,24.60519725,3118.2,3118.1,0.002]
[1765640128754,23.63667725,3118.2,3118.1,0.002]
[1765640129351,6.01866725,3118.2,3118.1,0.002]
[1765640129557,23.95770725,3118.2,3118.1,0.002]
[1765640129725,23.63667725,3118.2,3118.1,0.002]
[1765640130751,22.50667725,3118.2,3118.1,0.002]
[1765640131057,22.00067725,3118.2,3118.1,0.002]
[1765640131230,22.50667725,3118.2,3118.1,0.002]
[1765640131558,25.07370725,3118.2,3118.1,0.002]
[1765640131854,23.62207425,3118.2,3118.1,0.002]
[1765640132056,22.68107425,3118.2,3118.1,0.002]
[1765640132446,26.22681825,3118.2,3118.1,0.002]
[1765640132742,15.91334925,3118.2,3118.1,0.4764]
[1765640133659,18.95156725,3118.2,3118.1,0.002]
[1765640133953,19.88946725,3118.2,3118.1,0.002]
[1765640134332,17.83904925,3118.2,3118.1,0.002]
[1765640134537,20.29783525,3118.2,3118.1,0.002]
[1765640135247,18.96904925,3118.2,3118.1,0.002]
[1765640135648,20.05248825,3118.2,3118.1,0.002]
[1765640136153,20.05248825,3118.2,3118.0,0.002]
[1765640136154,0.58047529,3118.1,3118.0,0.002]
[1765640136356,14.60973774,3118.1,3118.0,0.002]
[1765640138056,18.26901897,3118.1,3118.0,0.002]
[1765640139258,18.75471897,3118.1,3118.0,0.002]
[1765640141942,18.75471897,3118.1,3117.7,0.002]
[1765640141943,9.7007182,3118.1,3117.7,0.002]
[1765640142141,0.804928,3118.0,3117.7,0.4964]
[1765640142467,1.34949262,3117.9,3117.7,0.4964]
[1765640142668,0.298928,3117.8,3117.7,0.4964]
[1765640143073,0.298928,3117.8,3117.7,0.9708]
[1765640143537,0.804928,3117.8,3117.7,0.9708]
[1765640144368,0.298928,3117.8,3117.7,0.9708]
[1765640144574,0.804928,3117.8,3117.7,0.9708]
[1765640152384,4.46451782,3117.8,3117.7,0.002]
[1765640152571,5.24113482,3117.8,3117.7,0.002]
[1765640153688,2.033745,3117.8,3117.7,0.002]
[1765640153889,2.12819216,3117.8,3117.7,0.002]
[1765640154186,5.82128198,3117.8,3117.7,0.002]
[1765640154390,0.804928,3117.8,3117.7,0.9708]
[1765640154567,0.298928,3117.8,3117.7,0.9708]
[1765640154763,0.804928,3117.8,3117.7,0.9708]
[1765640156167,0.298928,3117.8,3117.7,0.9708]
[1765640156357,0.804928,3117.8,3117.7,0.9708]
[1765640156771,0.80677698,3117.8,3117.7,0.9708]
[1765640159594,0.80677581,3117.8,3117.7,0.9708]
[1765640161482,0.80677581,3117.8,3117.7,0.4764]
[1765640161685,4.96306563,3117.8,3117.7,0.002]
[1765640161885,11.04708796,3117.8,3117.7,0.002]
[1765640162091,11.04708796,3117.8,3116.8,0.002]
[1765640162092,4.68651908,3117.4,3116.8,0.002]
[1765640162290,0.80677581,3117.3,3116.8,0.002]
[1765640162607,0.30077581,3117.2,3116.8,0.002]
[1765640162814,0.30077581,3117.1,3116.8,0.002]
[1765640162989,0.30077581,3117.0,3116.8,0.002]
[1765640163198,0.80677581,3116.9,3116.8,0.002]
[1765640163662,0.80677581,3116.9,3116.8,0.4656]
[1765640164297,0.80677581,3116.9,3116.8,0.9566]
[1765640164298,0.30077581,3116.9,3116.8,0.9566]
[1765640164495,0.80677581,3116.9,3116.8,0.9566]
[1765640165185,0.30077581,3116.9,3116.8,0.9566]
[1765640165387,0.80677581,3116.9,3116.8,0.9566]
[1765640165577,0.30077581,3116.9,3116.8,4.16501889]
[1765640165779,0.80677581,3116.9,3116.8,4.16501889]
[1765640165973,0.30077581,3116.9,3116.8,5.37122684]
[1765640166288,0.30077581,3116.9,3116.8,10.05774592]
[1765640167997,7.89350327,3118.2,3116.8,10.05774592]
[1765640167998,3.20708942,3118.1,3116.8,16.4745837]
[1765640168191,0.80624912,3118.0,3117.2,4.68651908]
[1765640168375,0.30024912,3117.9,3117.2,4.68651908]
[1765640168574,0.30024912,3117.8,3117.3,0.6526]
[1765640168900,0.30024912,3117.7,3117.3,0.6526]
[1765640169065,0.30024912,3117.6,3117.4,0.491]
[1765640169271,0.80624912,3117.5,3117.4,0.491]
[1765640169904,0.80624912,3117.5,3117.4,4.16240137]
[1765640171498,0.80625953,3117.5,3117.4,4.16240137]
[1765640176905,0.80625953,3117.5,3117.4,3.67140137]
[1765640177082,0.80625953,3117.5,3117.4,0.4636]
[1765640177274,0.80625953,3117.5,3117.1,3.36969443]
[1765640177480,0.30025953,3117.4,3117.1,3.36969443]
[1765640177680,0.30025953,3117.3,3117.2,3.20800718]
[1765640177880,0.30025953,3117.3,3117.2,3.69900718]
[1765640178080,0.30025953,3117.3,3117.2,4.16260718]
[1765640183506,0.30025953,3117.3,3117.2,3.67160718]
[1765640183708,0.30025953,3117.3,3117.2,4.14560718]
[1765640189224,0.30025953,3117.3,3117.2,3.67720718]
[1765640189722,0.80625953,3117.3,3117.2,4.15970718]
[1765640192024,0.80625953,3117.3,3117.2,3.67720718]
[1765640193204,0.80625953,3117.3,3117.2,0.4692]
[1765640193408,0.80625953,3117.3,3117.1,3.20803605]
[1765640193710,0.506,3117.3,3117.2,3.20800718]
[1765640193928,0.80646384,3117.3,3117.1,3.2081101]
[1765640194229,0.30046384,3117.2,3117.1,3.2081101]
[1765640195552,0.30046384,3117.2,3117.0,4.68488073]
[1765640195705,0.506,3117.4,3117.1,1.74095126]
[1765640195899,0.506,3117.4,3117.3,5.15408073]
[1765640196122,0.80671964,3117.4,3117.3,5.15408073]
[1765640196432,0.80671964,3117.4,3117.3,5.63658073]
[1765640197733,0.30071964,3117.4,3117.3,8.844485]
[1765640200705,0.30071964,3117.4,3117.3,4.15960427]
[1765640202119,0.30071964,3117.4,3117.3,9.69283007]
[1765640203141,0.30071964,3117.4,3117.3,7.55710427]
[1765640203635,0.30071964,3117.4,3117.3,8.03960427]
[1765640203838,0.30071964,3117.4,3117.3,7.55710427]
[1765640204905,0.30071964,3117.4,3117.3,8.03960427]
[1765640206203,0.30071964,3117.4,3117.3,7.55710427]
[1765640207710,1.25111964,3117.4,3117.0,3.20812975]
[1765640207909,0.4486,3117.1,3116.9,7.088295]
[1765640208142,0.30071964,3117.0,3116.9,7.088295]
[1765640208520,0.30071964,3117.0,3116.9,7.557495]
[1765640213728,0.30071964,3117.0,3116.9,3.677495]
[1765640215620,0.30071964,3117.0,3116.9,4.130395]
[1765640216214,0.30071964,3117.0,3116.9,3.677495]
[1765640217945,0.78621964,3117.0,3116.8,3.21032009]
[1765640218135,0.78621964,3116.9,3116.8,3.21032009]
[1765640218641,0.30071964,3116.9,3116.8,3.21032009]
[1765640218845,0.30071964,3116.9,3116.8,3.66862009]
[1765640223758,0.30071964,3116.9,3116.8,5.19742429]
[1765640225525,0.30071964,3116.9,3116.8,4.12152009]
[1765640233281,0.30071964,3116.9,3116.8,4.62752009]
[1765640237057,0.506,3118.2,3116.9,0.58047529]
[1765640237255,0.30073697,3118.1,3117.7,4.68601198]
[1765640237454,0.30073697,3118.0,3117.7,4.68601198]
[1765640237652,0.30073697,3117.9,3117.8,0.6145]
[1765640237847,0.30073697,3117.9,3117.8,1.0837]
[1765640238051,0.4692,3118.8,3117.9,9.62186085]
[1765640238255,0.30048682,3118.7,3118.3,0.4583]
[1765640238472,0.30048682,3118.6,3118.3,0.4583]
[1765640238670,0.30048682,3118.5,3118.4,0.4529]
[1765640238999,0.30048682,3118.5,3118.4,0.9221]
[1765640239154,0.30048682,3118.5,3118.4,1.3804]
[1765640239355,0.9762,3119.0,3118.4,1.3804]
[1765640239594,0.29976029,3118.9,3118.4,1.3804]
[1765640239767,0.29976029,3118.8,3118.4,1.3804]
[1765640239958,0.29976029,3118.7,3118.4,0.9275]
[1765640240152,0.507,3119.0,3118.9,0.4583]
[1765640240354,0.80675146,3119.0,3118.9,0.4583]
[1765640241084,0.30075146,3119.0,3118.9,1.26505146]
[1765640241860,0.001,3119.0,3118.9,1.72245146]
[1765640242079,0.001,3119.0,3118.9,4.92871007]
[1765640242281,0.001,3119.0,3118.9,4.47131007]
[1765640242475,0.001,3119.0,3118.9,4.92871007]
[1765640243591,0.001,3119.0,3118.9,4.47131007]
[1765640244461,0.001,3119.0,3118.9,6.21081961]
[1765640245984,0.001,3119.0,3118.9,10.09081961]
[1765640247499,0.001,3119.0,3118.9,9.63341961]
[1765640248276,0.4658,3119.0,3118.9,7.89301007]
[1765640248589,0.9427,3119.0,3118.9,7.89301007]
[1765640249304,0.9427,3119.0,3118.9,0.80675146]
[1765640249469,0.9427,3119.0,3118.3,0.58047529]
[1765640249669,0.178,3118.7,3118.4,6.4135454]
[1765640250171,0.506,3118.8,3118.6,0.4592]
[1765640250480,0.507,3119.0,3118.9,0.4592]
[1765640250675,0.4658,3119.0,3118.7,0.4938]
[1765640250878,0.9427,3119.0,3118.6,4.68034179]
[1765640251194,0.9427,3119.0,3118.7,0.506]
[1765640251400,0.4769,3118.9,3118.8,3.20636142]
[1765640251900,0.6699,3118.9,3118.8,3.20636142]
[1765640252273,0.6699,3118.9,3118.8,3.71236142]
[1765640252997,0.193,3118.9,3118.8,3.71236142]
[1765640254997,0.001,3119.0,3118.8,4.17156142]
[1765640255381,0.001,3119.0,3118.8,3.66556142]
[1765640255777,0.001,3119.0,3118.9,0.96300611]
[1765640256372,0.001,3119.0,3118.9,1.42220611]
[1765640256797,0.4658,3119.0,3118.9,0.96300611]
[1765640257987,0.4658,3119.0,3118.9,4.16926472]
[1765640265309,0.76507604,3119.0,3118.9,4.16926472]
[1765640266912,0.30027604,3119.0,3118.9,4.16926472]
[1765640267728,0.30027604,3119.0,3118.9,4.62846472]
[1765640270018,0.76507604,3119.0,3118.9,4.16926472]
[1765640271138,0.30027604,3119.0,3118.9,4.62846472]
[1765640272008,0.30027604,3119.0,3118.9,5.12226472]
[1765640272205,0.30027604,3119.0,3118.9,6.34312733]
[1765640272937,0.30027604,3119.0,3118.9,10.22312733]